[Event "Icelandic Championship 2022"]
[Site "Selfoss"]
[Date "2022.04.23"]
[Round "3.1"]
[White "Steingrimsson, Hedinn"]
[Black "Thorhallsson, Throstur"]
[Result "1/2-1/2"]
[ECO "D35"]
[WhiteElo "2535"]
[BlackElo "2414"]
[Annotator "TA"]
[PlyCount "86"]
[EventDate "2022.04.21"]
[EventType "tourn"]
[EventCountry "ISL"]
[SourceTitle "playchess.com"]
[Source "ChessBase"]
[SourceQuality "1"]
[TimeControl "40/5400+30:1800+30"]

{[%evp 18,86,12,-2,23,30,39,29,27,0,0,8,0,0,3,-12,-10,-22,-15,-22,-8,-29,-33,-22,-24,-20,-18,-21,0,-6,-6,-29,-5,-7,0,0,40,0,0,0,0,0,0,0,0,0,0,0,0,0,0,0,0,0,0,0,0,0,0,0,0,0,0,0,0,0,0,0,0,0,0]} 1. d4 {[%emt 0:00:18]} Nf6 {[%emt 0:00:23]} 2. c4 {[%emt 0:00:44]} e6 {[%emt 0:00:20]} 3. Nc3 {[%emt 0:01:43]} d5 {[%emt 0:00:10]} 4. cxd5 {[%emt 0:00:10]} exd5 {[%emt 0:00:22]} 5. Bg5 {[%emt 0:00:11]} c6 {[%emt 0:00:42]} 6. e3 {[%emt 0:00:09]} Bd6 {[%emt 0:00:51]} 7. Bd3 {[%emt 0:01:18]} O-O {[%emt 0:00:35]} 8. Qc2 {[%emt 0:07:26]} h6 {[%emt 0:00:26]} 9. Bh4 {[%emt 0:00:02]} Re8 {[%emt 0:00:41]} 10. Nf3 {[%emt 0:02:29]} a5 {[%emt 0:06:51] D35: Queen's Gambit Declined: Exchange Variation.} 11. O-O {[%emt 0:02:54]} Nbd7 {[%emt 0:13:51]} 12. Rae1 {[%emt 0:04:40]} Be7 {[%emt 0:08:13] [#] White has an edge.} 13. Ne5 $146 {[%emt 0:11:47]} ({Predecessor:} 13. Bg3 Nf8 14. h3 Be6 15. Ne5 Rc8 16. Bh2 b5 17. f4 a4 18. g4 {0-1 (88) Makarian,R (2386)-Cardoso Cardoso,J (2313) Corum 2019}) 13... Nxe5 {[%emt 0:12:53]} 14. dxe5 {[%emt 0:00:29]} Ne4 {[%emt 0:10:44]} 15. Bxe7 {[%emt 0:05:53]} Qxe7 {[%emt 0:00:10]} 16. Nxe4 {[%emt 0:19:24]} dxe4 {[%emt 0:00:09]} 17. Bxe4 {[%emt 0:00:02]} Qxe5 {[%emt 0:00:17]} 18. Bh7+ {[%emt 0:00:23]} Kh8 {[%emt 0:01:43] Black wants to play ...g6.} 19. f4 {[%emt 0:00:16]} Qf6 {[%emt 0:03:24] [#] Threatens to win with ...g6.} 20. Bd3 {[%emt 0:00:10]} Be6 {[%emt 0:02:19]} 21. b3 {[%emt 0:02:48]} Rad8 {[%emt 0:00:52]} 22. Kh1 {[%emt 0:02:13]} Rd6 {[%emt 0:06:38]} 23. e4 {[%emt 0:02:47] [#] e5 is the strong threat.} Qd4 {[%emt 0:00:36]} 24. Rf3 {[%emt 0:03:07]} Rdd8 {[%emt 0:02:25][%cal Oe6d5]} 25. h3 {[%emt 0:03:36]} Qb4 {[%emt 0:00:59]} 26. Qf2 {[%emt 0:13:30]} a4 {[%emt 0:10:55]} 27. bxa4 {[%emt 0:02:14]} Bxa2 {[%emt 0:01:34] The position is equal.} 28. Ra1 {[%emt 0:06:18]} Bb3 {[%emt 0:03:10]} 29. Qb2 {[%emt 0:01:41] aiming for Bc2.} Qd4 $1 {[%emt 0:01:41]} 30. Rb1 {[%emt 0:01:27]} Bxa4 {[%emt 0:06:51] And now ...Re7 would win.} 31. Qxb7 {[%emt 0:00:44]} Rd7 {[%emt 0:00:24]} 32. Rb4 {[%emt 0:02:52]} Qd6 {[%emt 0:01:49]} 33. Qb6 {[%emt 0:00:34]} Bb5 {[%emt 0:02:57]} 34. Rb3 {[%emt 0:00:07]} Bxd3 {[%emt 0:00:41]} 35. Rfxd3 {[%emt 0:01:03]} Qe6 {[%emt 0:00:40]} 36. f5 {[%emt 0:02:16]} Qe7 {[%emt 0:00:04]} 37. f6 {[%emt 0:00:19]} gxf6 {[%emt 0:00:24]} 38. Qxc6 {[%emt 0:00:04]} (38. Rg3 {seems wilder.} h5 39. Rbf3 Qe5 40. Qe3) 38... Rc7 {[%emt 0:00:41]} 39. Qd6 {[%emt 0:00:39]} Qxd6 {[%emt 0:00:49]} 40. Rxd6 {[%emt 0:00:01]} Rxe4 {[%emt 0:00:15]} 41. Rxf6 {[%emt 0:05:57]} Kg7 {[%emt 0:00:09]} 42. Rbb6 {[%emt 0:01:20]} Re2 {[%emt 0:07:08]} 43. Rf4 {[%emt 0:01:28]} Re5 {[%emt 0:01:54] Weighted Error Value: White=0.05 (flawless) /Black=0.04 (flawless)} 1/2-1/2

[Event "Icelandic Championship 2022"]
[Site "Selfoss"]
[Date "2022.04.23"]
[Round "3.2"]
[White "Thorhallsson, Simon"]
[Black "Kjartansson, Gudmundur"]
[Result "0-1"]
[ECO "D11"]
[WhiteElo "2245"]
[BlackElo "2450"]
[Annotator "TA"]
[PlyCount "68"]
[EventDate "2022.04.21"]
[EventType "tourn"]
[EventCountry "ISL"]
[SourceTitle "playchess.com"]
[Source "ChessBase"]
[SourceQuality "1"]
[TimeControl "40/5400+30:1800+30"]

{[%evp 9,68,13,21,0,0,0,0,0,2,12,21,-59,-67,-97,-93,-83,-72,-55,-72,-136,-127,-130,-136,-142,-141,-133,-40,-51,-43,-43,-45,-66,0,0,-4,-19,0,0,0,-71,-81,-75,-18,-30,-50,-50,-65,-235,-257,-253,-252,-450,-437,-432,-406,-912,-896,-830,-600,-793,-565]} 1. d4 {[%emt 0:00:05]} d5 {[%emt 0:00:47]} 2. c4 {[%emt 0:00:14]} c6 {[%emt 0:00:30]} 3. Nf3 {[%emt 0:00:21]} Nf6 {[%emt 0:00:06]} 4. g3 {[%emt 0:02:00]} Bf5 {[%emt 0:01:58]} 5. Nc3 {[%emt 0:02:39]} e6 {[%emt 0:00:32]} 6. Qb3 {[%emt 0:00:56] D11: Slav Defence: 3 Nf3 sidelines and 3...Nf6 4 e3 Bg4.} Qb6 {[%emt 0:01:34]} 7. c5 {[%emt 0:00:13]} Qxb3 {[%emt 0:04:58]} 8. axb3 {[%emt 0:00:09] The position is equal.} Na6 {[%emt 0:12:22]} 9. Ra4 {[%emt 0:06:07][%cal Oe2e4] [#] Prevents Nb4.} Nd7 $146 {[%emt 0:05:08][%cal Bf6d7,Bd7c5,Bc5e4][%mdl 32]} ({Predecessor:} 9... Bc2 10. Nd2 e5 11. e3 exd4 12. exd4 Nc7 13. Bg2 a6 14. O-O O-O-O 15. Ra3 Ne4 16. Ndxe4 dxe4 {0-1 (47) Akbarinia,S (2379)-Lazavik,D (2436) Chess.com INT 2020}) 10. Nh4 {[%emt 0:22:46]} (10. e4 $11 Bxe4 11. Nxe4 dxe4 12. Bxa6 bxa6 13. Ng5) 10... Bc2 $15 {[%emt 0:05:11]} 11. Kd2 {[%emt 0:01:12]} Bxb3 {[%emt 0:09:48]} 12. Ra3 {[%emt 0:01:41] [#]} Naxc5 {[%emt 0:01:52]} 13. dxc5 {[%emt 0:01:56]} Nxc5 {[%emt 0:00:21]} 14. e3 {[%emt 0:16:41]} (14. Ke1 $142) 14... Ne4+ $17 {[%emt 0:18:14]} 15. Nxe4 {[%emt 0:02:27]} Bxa3 {[%emt 0:00:04]} 16. Nf6+ {[%emt 0:00:51]} gxf6 {[%emt 0:00:31]} 17. bxa3 {[%emt 0:00:07]} b5 {[%emt 0:08:14]} (17... Ke7 $17 18. Kc3 Ba4) 18. Bb2 $15 {[%emt 0:00:40]} Ke7 {[%emt 0:00:04]} 19. Bd4 $1 {[%emt 0:03:31]} Bc4 {[%emt 0:04:18]} 20. Bh3 {[%emt 0:02:13]} Rhc8 {[%emt 0:09:56]} ({Black should play} 20... h5 $15) 21. Bc5+ $11 {[%emt 0:01:40]} Kd7 {[%emt 0:00:24]} 22. Bd4 {[%emt 0:06:35]} Ke7 {[%emt 0:00:08] ...c5 is the strong threat.} 23. Bc5+ {[%emt 0:00:26]} Ke8 {[%emt 0:00:18][%cal Ob5b4]} 24. Bd4 {[%emt 0:01:00]} (24. Rb1 $11) 24... c5 $17 {[%emt 0:00:37]} 25. Bxf6 {[%emt 0:00:39]} a5 {[%emt 0:00:03]} ({Better is} 25... Rc6 $17) 26. Nf3 $11 {[%emt 0:02:49]} b4 $36 {[%emt 0:00:24][%mdl 2048] Black is pushing.} 27. Rb1 {[%emt 0:02:39]} d4 {[%emt 0:06:58]} (27... bxa3 $2 28. Rb7 Ra6 29. Re7+ Kf8 30. Ng5 $18) 28. axb4 $2 {[%emt 0:10:23] This move loses the game for White.} (28. Bf1 $15 Bxf1 29. Rxf1) 28... axb4 $19 {[%emt 0:00:41] And now ...Ra2+ would win.} 29. exd4 {[%emt 0:00:16]} Bd5 {[%emt 0:02:09] aiming for ...c4.} 30. Ne5 {[%emt 0:02:05] [#]} (30. dxc5 {was called for.} Ra2+ 31. Ke3 Ra3+ 32. Kd2 Rxf3 33. Bd4) 30... c4 $1 {[%emt 0:01:08][%cal Bc5c4,Bc4c3,Bc3c2][%mdl 32] White must now prevent ...c3+.} 31. Rxb4 {[%emt 0:01:16]} c3+ {[%emt 0:00:45]} 32. Ke2 {[%emt 0:01:45]} (32. Kd3 $142 c2 33. Bg5) 32... Ra2+ {[%emt 0:00:34][%mdl 64] Skewer, Deflection. Black is clearly winning.} 33. Kd3 {[%emt 0:02:08]} Rd2+ {[%emt 0:03:20]} 34. Ke3 {[%emt 0:00:12] [#]} c2 $1 {[%emt 0:00:23][%mdl 512] Weighted Error Value: White=0.45/Black=0.10 (very precise)} 0-1

[Event "Icelandic Championship 2022"]
[Site "Selfoss"]
[Date "2022.04.23"]
[Round "3.3"]
[White "Mai, Alexander Oliver"]
[Black "Thorfinnsson, Bragi"]
[Result "0-1"]
[ECO "B32"]
[WhiteElo "2207"]
[BlackElo "2419"]
[Annotator "TA"]
[PlyCount "94"]
[EventDate "2022.04.21"]
[EventType "tourn"]
[EventCountry "ISL"]
[SourceTitle "playchess.com"]
[Source "ChessBase"]
[SourceQuality "1"]
[TimeControl "40/5400+30:1800+30"]

{[%evp 24,94,32,31,105,96,89,63,60,23,17,13,9,0,20,14,4,0,0,0,0,0,30,24,27,24,45,-16,-17,-16,-8,-12,-13,-20,-4,0,0,-52,-24,-16,-14,-21,0,-87,-50,-34,-33,-336,-61,-476,-460,-622,-526,-463,-287,-266,-251,-476,-359,-803,-764,-726,-595,-1320,-1281,-4239,-2804,-29990,-29991,-29991,-29992,-29994,-29995]} 1. e4 {[%emt 0:00:03]} c5 {[%emt 0:00:16]} 2. Nf3 {[%emt 0:00:09]} Nc6 {[%emt 0:00:16]} 3. d4 {[%emt 0:01:02]} cxd4 {[%emt 0:00:08]} 4. Nxd4 {[%emt 0:00:07]} e5 {[%emt 0:00:51]} 5. Nb5 {[%emt 0:00:11]} d6 {[%emt 0:00:10]} 6. N1c3 {[%emt 0:00:22]} a6 {[%emt 0:00:18]} 7. Na3 {[%emt 0:00:06]} b5 {[%emt 0:00:19]} 8. Nd5 {[%emt 0:00:11]} Nge7 {[%emt 0:00:21]} 9. c4 {[%emt 0:01:23]} Nxd5 {[%emt 0:01:00]} 10. cxd5 {[%emt 0:03:00]} Nd4 {[%emt 0:00:13]} 11. Be3 {[%emt 0:06:52]} Be7 {[%emt 0:00:10]} 12. Bd3 {[%emt 0:07:37]} O-O {[%emt 0:04:55]} 13. O-O {[%emt 0:02:02]} f5 {[%emt 0:09:43] B32: Sicilian: Löwenthal and Kalashnikov Variations.} (13... Bd7) (13... Qa5 $14) 14. Bxd4 $16 {[%emt 0:03:49]} exd4 {[%emt 0:00:49]} 15. exf5 {[%emt 0:00:41]} Bxf5 {[%emt 0:00:43] White is slightly better.} 16. Bxf5 {[%emt 0:08:51]} (16. Nc2) 16... Rxf5 {[%emt 0:00:05]} 17. Qxd4 {[%emt 0:02:10]} Bf6 {[%emt 0:02:04] [#]} 18. Qg4 $146 {[%emt 0:07:24]} ({Predecessor:} 18. Qd2 Qb6 19. Rad1 Rf8 20. Nc2 Bg5 21. Qd4 Qc7 22. Nb4 Rf4 23. Qc3 Qa7 24. Nd3 {1-0 (83) Zampronha,W (2156)-Fascetti,A (2165) Sao Bernardo do Campo 2018}) 18... Rg5 {[%emt 0:01:33]} 19. Qe6+ {[%emt 0:01:00]} Kh8 {[%emt 0:00:12]} 20. Rae1 {[%emt 0:09:15]} (20. f4 {is more complex.} Rh5 21. Rad1 Bxb2 22. Nb1) 20... Bxb2 {[%emt 0:08:46]} 21. Nc2 {[%emt 0:03:13]} Bc3 {[%emt 0:04:27]} 22. Re4 {[%emt 0:02:14]} Rg6 {[%emt 0:03:01]} 23. Qh3 {[%emt 0:01:34]} Qg5 {[%emt 0:04:36]} 24. Ne3 {[%emt 0:17:39]} Rf8 {[%emt 0:05:10]} 25. Rh4 {[%emt 0:02:02]} ({Better is} 25. f4 $14 Qd8 26. Kh1) 25... h6 $11 {[%emt 0:02:54]} 26. Rh5 {[%emt 0:00:32]} Qd8 {[%emt 0:02:43]} 27. Nf5 $1 {[%emt 0:05:33]} b4 {[%emt 0:02:07]} 28. Qd3 {[%emt 0:01:43]} Qe8 {[%emt 0:06:18][%cal Og6g2] ...Rxg2+! is the strong threat.} 29. Rh3 {[%emt 0:02:34]} Rgf6 {[%emt 0:13:27]} 30. Ne3 {[%emt 0:09:23]} (30. Ng3 $11) 30... Qc8 {[%emt 0:09:09]} 31. Rh4 {[%emt 0:01:05]} a5 {[%emt 0:01:25]} 32. Rc4 {[%emt 0:01:52]} Qe8 {[%emt 0:01:30]} 33. Rc7 {[%emt 0:00:38]} (33. f4 $11) 33... Qa4 {[%emt 0:03:03]} 34. Ng4 {[%emt 0:00:30]} R6f7 {[%emt 0:04:05]} 35. Rc6 {[%emt 0:00:29][%mdl 8192]} (35. Rxf7 $15 Rxf7 36. Qg6) 35... Rf4 $2 {[%emt 0:03:56]} ({Black should play} 35... Qxa2 $19 {White must now prevent ...h5.} 36. f3 Re7 37. Rxd6 Re2) 36. Qg6 {[%emt 0:00:41][%mdl 8192]} ({Only move:} 36. Qe2 $15) 36... Qxa2 $19 {[%emt 0:01:26]} 37. Rxd6 {[%emt 0:00:29]} Qe2 {[%emt 0:00:22]} 38. h3 {[%emt 0:00:31]} Qe4 {[%emt 0:02:57]} 39. Qh5 {[%emt 0:00:25]} Qf5 {[%emt 0:03:10]} 40. Qh4 {[%emt 0:00:33]} (40. Qxf5 {is the only way for White.} R4xf5 41. Rd1) 40... a4 {[%emt 0:01:08][%cal Ba5a4,Ba4a3,Ba3a2][%mdl 32]} 41. Qg3 $2 {[%emt 0:04:50]} (41. g3 Rf3 42. Nxh6) 41... a3 {[%emt 0:07:42] Strongly threatening ...a2.} 42. Ra6 {[%emt 0:04:45]} Qxd5 {[%emt 0:03:53]} 43. Nxh6 {[%emt 0:06:57]} Qc4 {[%emt 0:00:55]} 44. Rg6 {[%emt 0:00:59]} a2 {[%emt 0:01:43][%cal Oc4f1] ( -> ...Qxf1+!)} 45. Ng4 {[%emt 0:06:09] [#]} Qxf1+ $1 {[%emt 0:02:51][%mdl 512] Black mates.} 46. Kh2 {[%emt 0:00:18] [#]} Rxg4 $1 {[%emt 0:00:58]} 47. Qxg4 {[%emt 0:00:28]} (47. hxg4 a1=Q) 47... Be5+ {[%emt 0:00:24] Weighted Error Value: White=0.97/Black=0.39} 0-1

[Event "Icelandic Championship 2022"]
[Site "Selfoss"]
[Date "2022.04.23"]
[Round "3.4"]
[White "Stefansson, Vignir Vatnar"]
[Black "Heimisson, Hilmir Freyr"]
[Result "1/2-1/2"]
[ECO "D23"]
[WhiteElo "2484"]
[BlackElo "2312"]
[Annotator "TA"]
[PlyCount "101"]
[EventDate "2022.04.21"]
[EventType "tourn"]
[EventCountry "ISL"]
[SourceTitle "playchess.com"]
[Source "ChessBase"]
[SourceQuality "1"]
[TimeControl "40/5400+30:1800+30"]

{[%evp 17,101,19,12,16,13,1,6,8,21,22,17,10,19,9,14,0,0,-46,-26,-48,-47,-52,-42,-57,-47,-52,-42,-50,-52,-63,-35,-67,-65,-63,-60,-60,-44,-43,-39,-75,-60,-65,-60,-81,-44,-45,-51,-66,-36,-37,-26,-48,-26,-31,-26,-76,-11,-16,-13,0,0,0,0,0,0,0,0,0,0,0,0,0,0,0,0,0,0,0,0,0,0,0,0,-8,-2,0]} 1. c4 {[%emt 0:00:32]} c6 {[%emt 0:00:35]} 2. d4 {[%emt 0:06:37]} d5 {[%emt 0:00:09]} 3. Nf3 {[%emt 0:00:44]} Nf6 {[%emt 0:00:13]} 4. Qc2 {[%emt 0:02:14]} dxc4 {[%emt 0:01:31]} 5. Qxc4 {[%emt 0:01:01]} Bf5 {[%emt 0:01:15]} 6. g3 {[%emt 0:00:15]} e6 {[%emt 0:03:23]} 7. Bg2 {[%emt 0:00:07]} Be7 {[%emt 0:02:35]} 8. O-O {[%emt 0:00:16]} Nbd7 {[%emt 0:03:35]} 9. Qb3 {[%emt 0:00:10]} Qb6 {[%emt 0:03:06]} 10. Nbd2 {[%emt 0:00:12] D23: Queen's Gambit Accepted: 3 Nf3 Nf6 sidelines.} O-O {[%emt 0:04:44]} 11. Nc4 {[%emt 0:00:13]} Qxb3 {[%emt 0:06:31]} 12. axb3 {[%emt 0:00:10]} Be4 {[%emt 0:00:03] [#]} 13. Nfe5 $146 {[%emt 0:21:19] [#] Hoping for Nxd7.} ({Predecessor:} 13. Bf4 c5 14. Rfc1 Rfc8 15. Nd6 Bxd6 16. Bxd6 cxd4 17. Nxd4 Bxg2 18. Kxg2 a6 19. f3 {½-½ (33) Dubov,D (2676)-Duda,J (2748) Hamburg 2019}) 13... Bxg2 {[%emt 0:05:18]} 14. Kxg2 {[%emt 0:00:35]} Rfc8 {[%emt 0:06:23]} 15. Bg5 {[%emt 0:04:06]} h6 {[%emt 0:13:10]} 16. Nxd7 {[%emt 0:06:11]} hxg5 {[%emt 0:00:46]} 17. Nxf6+ {[%emt 0:00:17]} (17. Nc5 $11 {was preferrable.}) 17... Bxf6 {[%emt 0:00:34]} 18. Rfd1 {[%emt 0:00:47]} Rd8 {[%emt 0:01:21]} 19. e3 {[%emt 0:00:20]} a6 {[%emt 0:01:05]} 20. g4 {[%emt 0:05:46]} Rac8 {[%emt 0:02:14]} 21. Nb6 {[%emt 0:00:19]} Rc7 {[%emt 0:00:57]} 22. Ra5 {[%emt 0:00:06]} g6 {[%emt 0:05:50]} 23. Rc1 {[%emt 0:01:20][%cal Od4d5]} Rd6 {[%emt 0:07:19]} 24. Rc4 {[%emt 0:05:08]} Bd8 {[%emt 0:05:31]} 25. Ra1 {[%emt 0:00:10]} f5 {[%emt 0:01:31]} 26. Rc3 {[%emt 0:04:41]} Rh7 {[%emt 0:05:27]} 27. Na4 {[%emt 0:00:52]} Bf6 {[%emt 0:03:35]} 28. Rc5 {[%emt 0:01:33]} Rh4 {[%emt 0:00:57]} 29. h3 {[%emt 0:00:08]} Rd7 {[%emt 0:01:14]} 30. Rh1 {[%emt 0:04:31]} Rdh7 {[%emt 0:04:46]} 31. f3 {[%emt 0:01:24]} Rd7 {[%emt 0:01:02]} 32. Rc2 {[%emt 0:02:01]} Rhh7 {[%emt 0:03:43]} 33. Nc5 {[%emt 0:00:17][%csl LRd7,LRe6]} Rd6 {[%emt 0:00:40]} 34. Ra1 {[%emt 0:01:47]} e5 {[%emt 0:02:38]} 35. dxe5 {[%emt 0:00:22]} Bxe5 {[%emt 0:00:13]} 36. Ra4 {[%emt 0:00:03]} (36. b4 $11) 36... b6 {[%emt 0:02:20]} ({Better is} 36... Rd1 $17) 37. Nxa6 $11 {[%emt 0:01:20] The position is equal.} Rhd7 {[%emt 0:00:40]} 38. Rac4 {[%emt 0:01:13]} Rd2+ {[%emt 0:00:27]} 39. Rxd2 {[%emt 0:00:12]} Rxd2+ {[%emt 0:00:01][%mdl 4096] Endgame KRB-KRN} 40. Kf1 {[%emt 0:01:54]} c5 {[%emt 0:01:38]} 41. b4 {[%emt 0:30:18]} Rd1+ {[%emt 0:10:46]} 42. Ke2 {[%emt 0:00:00]} Ra1 {[%emt 0:00:11]} 43. f4 {[%emt 0:00:00]} gxf4 {[%emt 0:00:09]} 44. exf4 {[%emt 0:00:00]} Bxb2 {[%emt 0:00:42]} 45. Nc7 {[%emt 0:00:00]} Ra2 {[%emt 0:07:17] [#] Strongly threatening ...fxg4.} 46. Kd3 {[%emt 0:00:00]} Ra3+ {[%emt 0:01:41]} 47. Kc2 {[%emt 0:00:00]} Bd4 {[%emt 0:00:21]} 48. Nb5 {[%emt 0:00:00]} Ra2+ {[%emt 0:00:40]} 49. Kd3 {[%emt 0:00:00]} Bg1 {[%emt 0:01:13]} 50. Rc1 {[%emt 0:00:00]} Rg2 {[%emt 0:01:08]} 51. gxf5 {[%emt 0:00:00] Weighted Error Value: White=0.08 (flawless) /Black=0.10 (very precise)} 1/2-1/2

[Event "Icelandic Championship 2022"]
[Site "Selfoss"]
[Date "2022.04.23"]
[Round "3.5"]
[White "Gretarsson, Hjorvar Steinn"]
[Black "Stefansson, Hannes"]
[Result "1-0"]
[ECO "E35"]
[WhiteElo "2548"]
[BlackElo "2520"]
[Annotator "TA"]
[PlyCount "123"]
[EventDate "2022.04.21"]
[EventType "tourn"]
[EventCountry "ISL"]
[SourceTitle "playchess.com"]
[Source "ChessBase"]
[SourceQuality "1"]
[TimeControl "40/5400+30:1800+30"]

{[%evp 20,123,29,0,0,0,0,7,21,-32,5,0,0,0,0,0,0,0,0,0,17,19,20,0,0,1,0,16,27,18,13,4,5,8,6,7,7,6,116,0,0,3,11,12,87,87,113,41,42,41,35,35,37,9,13,16,11,12,13,17,12,0,144,39,38,44,41,38,65,68,33,0,90,35,48,65,117,0,0,0,0,0,0,-135,-129,-258,-126,-379,-374,-327,-18,0,0,0,52,49,860,823,1880,2912,1236,1769,12839,12839,6127,1379]} 1. d4 {[%emt 0:08:58]} Nf6 {[%emt 0:00:32]} 2. c4 {[%emt 0:00:46]} e6 {[%emt 0:00:11]} 3. Nc3 {[%emt 0:00:04]} Bb4 {[%emt 0:00:18]} 4. Qc2 {[%emt 0:00:04]} d5 {[%emt 0:00:47]} 5. cxd5 {[%emt 0:00:02]} exd5 {[%emt 0:00:30]} 6. Bg5 {[%emt 0:00:05]} h6 {[%emt 0:03:28]} 7. Bh4 {[%emt 0:02:48]} Nc6 {[%emt 0:03:23]} 8. e3 {[%emt 0:02:01]} g5 {[%emt 0:02:27]} 9. Bg3 {[%emt 0:00:05]} h5 {[%emt 0:01:39]} 10. Bb5 {[%emt 0:06:22]} Ne4 {[%emt 0:12:52]} 11. f3 {[%emt 0:05:26]} Nxg3 {[%emt 0:03:08]} 12. hxg3 {[%emt 0:00:06]} Qd6 {[%emt 0:02:37]} 13. Kf2 {[%emt 0:04:21]} Bd7 {[%emt 0:02:25]} 14. Rc1 {[%emt 0:03:58]} ({White should play} 14. Nge2 $11) 14... Bxc3 {[%emt 0:06:32]} 15. Qxc3 {[%emt 0:01:43]} O-O-O {[%emt 0:01:07]} 16. Bxc6 {[%emt 0:03:03]} Bxc6 {[%emt 0:00:56]} 17. Qc5 {[%emt 0:00:04]} Kb8 {[%emt 0:05:48]} 18. Qxd6 {[%emt 0:00:39]} Rxd6 {[%emt 0:02:36]} 19. Ne2 {[%emt 0:12:06]} Bd7 {[%emt 0:06:33]} 20. Nc3 {[%emt 0:10:38]} c6 {[%emt 0:02:57]} 21. Rh2 {[%emt 0:04:47]} Rdh6 {[%emt 0:10:57]} 22. Ke2 {[%emt 0:04:57]} R6h7 {[%emt 0:04:19]} 23. e4 {[%emt 0:04:31]} Be6 {[%emt 0:05:09]} 24. exd5 {[%emt 0:01:28]} cxd5 {[%emt 0:03:57]} 25. Kd2 {[%emt 0:01:34]} h4 {[%emt 0:09:37]} 26. Rch1 {[%emt 0:11:14]} Kc7 {[%emt 0:04:08]} 27. Nd1 {[%emt 0:01:25]} Kd6 {[%emt 0:02:16]} 28. Ne3 {[%emt 0:02:18]} f5 {[%emt 0:01:46]} (28... Bd7 $11 {keeps the balance.}) 29. gxh4 {[%emt 0:00:48]} (29. f4 $16) 29... f4 $11 {[%emt 0:00:23]} 30. Nd1 {[%emt 0:00:36]} gxh4 {[%emt 0:01:27]} 31. Nc3 {[%emt 0:01:01]} Rg7 {[%emt 0:00:23]} (31... h3 $11 32. gxh3 Rh4) 32. Ne2 $1 $16 {[%emt 0:00:30]} h3 {[%emt 0:00:50]} 33. gxh3 {[%emt 0:02:42]} (33. Nxf4 $16 Bd7 34. Nxh3 (34. gxh3 Rh4 $14) 34... Bxh3 35. g4 (35. gxh3 Rh4 $16) (35. Rxh3 Rxg2+ 36. Kc1 Rg1+ 37. Rxg1 Rxh3 $14)) 33... Rh4 $1 $14 {[%emt 0:00:13]} 34. Rg1 {[%emt 0:02:56]} Rgh7 {[%emt 0:00:04]} 35. Rg6 {[%emt 0:00:54]} Ke7 {[%emt 0:00:05]} 36. Rhg2 {[%emt 0:01:23]} Kf7 {[%emt 0:00:53]} 37. R2g5 {[%emt 0:01:26]} Bxh3 {[%emt 0:00:11]} 38. Rd6 {[%emt 0:00:43]} Be6 {[%emt 0:00:11]} 39. Re5 {[%emt 0:00:06]} R7h6 {[%emt 0:00:16]} 40. Rd8 {[%emt 0:00:52]} Rh3 {[%emt 0:01:15]} (40... Kf6 $11) 41. Rb8 {[%emt 0:08:34]} ({Only move:} 41. Nxf4 $16 Rxf3 42. Nxe6 Rxe6 43. Rd7+ (43. Rdxd5 Kf6 $16) (43. Rexd5 Rf2+ 44. Kd3 Rxb2 $11) 43... Kf6 44. Rxe6+ (44. Rxb7 Rxe5 45. dxe5+ Kxe5 $11) (44. Rdxd5 a6 $16) (44. Rexd5 Rf2+ 45. Kd3 Rb6 $11) 44... Kxe6 45. Rxb7) 41... Rxf3 $14 {[%emt 0:04:15]} 42. Rxb7+ {[%emt 0:00:18]} Kf8 {[%emt 0:00:43]} 43. Rxa7 {[%emt 0:01:34]} Rf1 {[%emt 0:04:24]} 44. Ra6 {[%emt 0:10:24]} Kf7 {[%emt 0:00:45]} 45. Ra7+ {[%emt 0:02:24]} (45. b4 $14 Rf6 46. Ra7+ Kf8 47. Ra8+ Kf7 48. Ra7+ Kf8 49. b5) 45... Kf8 $16 {[%emt 0:00:06]} 46. a4 {[%emt 0:00:40]} ({Better is} 46. b4 $16 {Black must now prevent b5.} Rf6 47. b5) 46... Rf6 {[%emt 0:01:24]} 47. Rh5 $1 {[%emt 0:00:33]} Bf7 {[%emt 0:01:28]} (47... Rf7 $14 48. Rxf7+ Kxf7) 48. Rh8+ {[%emt 0:00:53]} (48. Rh4 $1 $16) 48... Kg7 $11 {[%emt 0:00:10]} 49. Rh4 {[%emt 0:01:30]} Kg6 {[%emt 0:03:16]} 50. Re7 {[%emt 0:01:54]} Kg5 {[%emt 0:02:07]} 51. Rh7 {[%emt 0:01:22]} (51. Rxf4 $1 $11 {was the only way to keep the balance.} R6xf4 52. Nxf4 Rxf4 53. Ke3) 51... Bg6 $17 {[%emt 0:00:58]} 52. Rh2 {[%emt 0:03:10] [#]} (52. Re5+ $17 {is the only way for White.} Kg4 53. Rh6) 52... f3 {[%emt 0:01:10]} (52... Rb6 $1 $19 {[%cal Rb6b2]} 53. Re5+ Kf6) 53. Re3 $2 {[%emt 0:01:46][%mdl 8192]} (53. Re5+ $17 {keeps fighting.} Kg4 54. Rxd5 (54. Nc3 $2 f2 $17)) 53... Rb1 $19 {[%emt 0:02:37]} (53... fxe2 $2 54. Rexe2 Rb6 55. a5 $19) 54. Rb3 {[%emt 0:00:45]} (54. Re5+ Kg4 55. Rxd5 Rxb2+ 56. Ke3 Rb3+ 57. Kd2 f2 58. Rg2+ Kh4 59. Rh2+ Rh3 60. Rxf2 Rxf2 $19) 54... Be4 $2 {[%emt 0:01:26]} ({Black should try} 54... fxe2 $19 55. Rxe2 Rc6) 55. Nc3 $1 $11 {[%emt 0:00:14]} (55. Ng3 $2 Rg1 56. Nxe4+ dxe4 $19) 55... Rf1 {[%emt 0:04:47]} (55... f2 $2 56. Nxe4+ dxe4 57. Rg3+ Kf5 58. Rxf2+ Ke6 59. Rxf6+ Kxf6 60. Rb3 $18) 56. Rb8 {[%emt 0:00:43]} Bg6 {[%emt 0:01:57]} (56... f2 57. Nxe4+ dxe4 58. Rg8+ Kf5 59. Ke2 Re1+ 60. Kxf2 $16) (56... Rg1 $11 57. Ke3 Bg6) 57. Nxd5 $14 {[%emt 0:00:58]} f2 $2 {[%emt 0:02:11][%mdl 8192] [#]} (57... Rd6 $14 58. Rb5 Bf5) 58. Ne3 $1 $18 {[%emt 0:00:22]} ({Not} 58. Rg2+ Kh6 59. Ne3 (59. Nxf6 $2 Rd1+ 60. Ke3 f1=Q $19) 59... Rg1 60. Ng4+ (60. Rh8+ Kg7 $15) 60... Kg7 61. Rxf2 Rxg4 62. Rxf6 Kxf6 $11) 58... Rb1 {[%emt 0:02:32]} 59. Rb5+ {[%emt 0:00:30]} Rf5 {[%emt 0:00:21]} 60. Rg2+ {[%emt 0:00:46]} ({Weaker is} 60. Rxf5+ Bxf5 61. Rg2+ (61. Rxf2 Rxb2+ 62. Ke1 Rb1+ 63. Ke2 Rb2+ 64. Kf1 Rb1+ 65. Ke2 Rb2+ 66. Kf3 Be4+ 67. Kg3 Rb3 $11) 61... Kh5 62. Rh2+ (62. Rxf2 Rxb2+ 63. Ke1 Rb1+ 64. Kd2 Rb2+ 65. Ke1 Rb1+ 66. Ke2 Rb2+ 67. Ke1 $14) 62... Kg5 $14) 60... Kh5 {[%emt 0:02:43]} 61. Nxf5 {[%emt 0:00:53]} Rd1+ {[%emt 0:00:46]} 62. Kc3 {[%emt 0:00:17]} 1-0